[Event "Titled Tuesday Blitz December 13 Late 2022"]
[White "Fernandez Garcia, Gumersindo"]
[Black "Pace, Christopher"]
[WhiteFideId "24516740"]
[BlackFideId "2610167"]
[WhiteElo "2140"]
[BlackElo "2301"]
[Result "0-1"]
[Round "11"]
[TimeControl "180+1"]
[Date "2022.12.14"]
[WhiteClock "0:01:11"]
[BlackClock "0:00:07"]

1. f4 {[%clk 0:02:59]}  d5 {[%clk 0:02:57]} 2. Nf3 {[%clk 0:02:55]}  Nf6 {[%clk 0:02:57]} 3. e3 {[%clk 0:02:56]}  g6 {[%clk 0:02:57]} 4. b3 {[%clk 0:02:56]}  Bg7 {[%clk 0:02:57]} 5. Bb2 {[%clk 0:02:57]}  O-O {[%clk 0:02:58]} 6. Be2 {[%clk 0:02:57]}  c5 {[%clk 0:02:58]} 7. O-O {[%clk 0:02:58]}  Nc6 {[%clk 0:02:59]} 8. a4 {[%clk 0:02:58]}  d4 {[%clk 0:02:59]} 9. Na3 {[%clk 0:02:57]}  Nd5 {[%clk 0:02:55]} 10. Qc1 {[%clk 0:02:43]}  f6 {[%clk 0:01:20]} 11. Bc4 {[%clk 0:02:33]}  Kh8 {[%clk 0:01:16]} 12. exd4 {[%clk 0:02:33]}  cxd4 {[%clk 0:01:16]} 13. Nxd4 {[%clk 0:02:33]}  Nxd4 {[%clk 0:01:12]} 14. Bxd4 {[%clk 0:02:33]}  Nxf4 {[%clk 0:01:12]} 15. Rxf4 {[%clk 0:02:32]}  e5 {[%clk 0:01:12]} 16. Bxe5 {[%clk 0:02:18]}  fxe5 {[%clk 0:01:12]} 17. Rxf8+ {[%clk 0:02:19]}  Qxf8 {[%clk 0:01:12]} 18. Qf1 {[%clk 0:02:18]}  Qd8 {[%clk 0:00:53]} 19. Rd1 {[%clk 0:02:08]}  Bf5 {[%clk 0:00:49]} 20. d3 {[%clk 0:02:05]}  a6 {[%clk 0:00:38]} 21. Nb1 {[%clk 0:02:05]}  b5 {[%clk 0:00:38]} 22. axb5 {[%clk 0:01:59]}  axb5 {[%clk 0:00:39]} 23. Bf7 {[%clk 0:01:47]}  Ra7 {[%clk 0:00:35]} 24. g4 {[%clk 0:01:41]}  Bxg4 {[%clk 0:00:36]} 25. Re1 {[%clk 0:01:41]}  Bf5 {[%clk 0:00:34]} 26. Bxg6 {[%clk 0:01:32]}  Bxg6 {[%clk 0:00:28]} 27. Nd2 {[%clk 0:01:31]}  Rf7 {[%clk 0:00:27]} 28. Qg2 {[%clk 0:01:30]}  Qd4+ {[%clk 0:00:27]} 29. Kh1 {[%clk 0:01:30]}  Rd7 {[%clk 0:00:16]} 30. Nf3 {[%clk 0:01:13]}  Qd5 {[%clk 0:00:16]} 31. h4 {[%clk 0:01:11]}  Bh5 {[%clk 0:00:14]} 32. Rf1 {[%clk 0:01:09]}  Rf7 {[%clk 0:00:11]} 33. Ng5 {[%clk 0:01:10]}  Qxg2+ {[%clk 0:00:11]} 34. Kxg2 {[%clk 0:01:10]}  Rxf1 {[%clk 0:00:11]} 35. Kxf1 {[%clk 0:01:11]}  Bf6 {[%clk 0:00:10]} 36. Ne4 {[%clk 0:01:11]}  Bxh4 {[%clk 0:00:10]} 37. Nd6 {[%clk 0:01:11]}  b4 {[%clk 0:00:11]} 38. Nc4 {[%clk 0:01:10]}  Bf6 {[%clk 0:00:09]} 39. Na5 {[%clk 0:01:10]}  Bd1 {[%clk 0:00:08]} 40. Nc6 {[%clk 0:01:09]}  Bxc2 {[%clk 0:00:08]} 41. Nxb4 {[%clk 0:01:09]}  Bxb3 {[%clk 0:00:08]} 42. Ke2 {[%clk 0:01:10]}  Be6 {[%clk 0:00:08]} 43. Nc6 {[%clk 0:01:10]}  h5 {[%clk 0:00:08]} 44. Kf3 {[%clk 0:01:08]}  Bd5+ {[%clk 0:00:08]} 45. Kg3 {[%clk 0:01:07]}  Bxc6 {[%clk 0:00:09]} 46. d4 {[%clk 0:01:06]}  h4+ {[%clk 0:00:09]} 47. Kh3 {[%clk 0:01:07]}  exd4 {[%clk 0:00:10]} 48. Kg4 {[%clk 0:01:07]}  Be4 {[%clk 0:00:10]} 49. Kf4 {[%clk 0:01:07]}  Bg6 {[%clk 0:00:10]} 50. Kf3 {[%clk 0:01:07]}  d3 {[%clk 0:00:10]} 51. Ke3 {[%clk 0:01:08]}  h3 {[%clk 0:00:11]} 52. Kd2 {[%clk 0:01:09]}  h2 {[%clk 0:00:11]} 53. Ke3 {[%clk 0:01:09]}  h1=Q {[%clk 0:00:10]} 54. Kd2 {[%clk 0:01:10]}  Qg2+ {[%clk 0:00:10]} 55. Ke3 {[%clk 0:01:11]}  Qe2+ {[%clk 0:00:11]} 56. Kf4 {[%clk 0:01:11]}  Qe5+ {[%clk 0:00:09]} 57. Kg4 {[%clk 0:01:12]}  Qf5+ {[%clk 0:00:09]} 58. Kg3 {[%clk 0:01:12]}  Be5+ {[%clk 0:00:09]} 59. Kh4 {[%clk 0:01:11]}  Qh5# {[%clk 0:00:07]} 0-1


[Site "https://www.chess.com"]

[Event "Titled Tuesday Blitz December 13 Late 2022"]
[White "Figorito, Nick"]
[Black "Sukandar, Irine Kharisma"]
[WhiteFideId "30923689"]
[BlackFideId "7101937"]
[WhiteElo "2442"]
[BlackElo "2301"]
[Result "0-1"]
[Round "11"]
[TimeControl "180+1"]
[Date "2022.12.14"]
[WhiteClock "0:00:04"]
[BlackClock "0:00:33"]

1. Nf3 {[%clk 0:03:00]}  d5 {[%clk 0:02:56]} 2. g3 {[%clk 0:03:01]}  Nf6 {[%clk 0:02:56]} 3. Bg2 {[%clk 0:03:01]}  c5 {[%clk 0:02:55]} 4. O-O {[%clk 0:03:01]}  Nc6 {[%clk 0:02:56]} 5. d4 {[%clk 0:03:02]}  cxd4 {[%clk 0:02:55]} 6. Nxd4 {[%clk 0:03:03]}  Bd7 {[%clk 0:02:35]} 7. c4 {[%clk 0:02:56]}  dxc4 {[%clk 0:02:34]} 8. Nxc6 {[%clk 0:02:57]}  Bxc6 {[%clk 0:02:34]} 9. Bxc6+ {[%clk 0:02:57]}  bxc6 {[%clk 0:02:33]} 10. Qa4 {[%clk 0:02:55]}  Qd5 {[%clk 0:02:29]} 11. Nc3 {[%clk 0:02:55]}  Qe6 {[%clk 0:02:23]} 12. Bg5 {[%clk 0:02:40]}  Nd7 {[%clk 0:02:18]} 13. Rac1 {[%clk 0:02:31]}  Nb6 {[%clk 0:02:18]} 14. Qc2 {[%clk 0:02:27]}  g6 {[%clk 0:02:12]} 15. a4 {[%clk 0:02:26]}  Bg7 {[%clk 0:02:11]} 16. a5 {[%clk 0:02:26]}  Nd5 {[%clk 0:02:11]} 17. Na4 {[%clk 0:02:16]}  O-O {[%clk 0:01:51]} 18. Qxc4 {[%clk 0:02:15]}  Qe5 {[%clk 0:01:51]} 19. Bd2 {[%clk 0:02:04]}  Rfd8 {[%clk 0:01:48]} 20. Bc3 {[%clk 0:01:50]}  Nxc3 {[%clk 0:01:47]} 21. Rxc3 {[%clk 0:01:40]}  Qxa5 {[%clk 0:01:44]} 22. Re3 {[%clk 0:01:28]}  Qb5 {[%clk 0:01:39]} 23. Qa2 {[%clk 0:01:18]}  e6 {[%clk 0:01:38]} 24. Rb3 {[%clk 0:01:01]}  Qxe2 {[%clk 0:01:37]} 25. Nc3 {[%clk 0:00:58]}  Qc4 {[%clk 0:01:18]} 26. Qa3 {[%clk 0:00:41]}  Rd2 {[%clk 0:01:14]} 27. Rb7 {[%clk 0:00:36]}  a5 {[%clk 0:00:46]} 28. Qe7 {[%clk 0:00:31]}  Rf8 {[%clk 0:00:46]} 29. Nd1 {[%clk 0:00:23]}  Bd4 {[%clk 0:00:44]} 30. Rc7 {[%clk 0:00:16]}  Qd5 {[%clk 0:00:36]} 31. Nc3 {[%clk 0:00:10]}  Qf3 {[%clk 0:00:33]} 32. Na4 {[%clk 0:00:04]}  Bxf2+ {[%clk 0:00:33]} 0-1


[Site "https://www.chess.com"]

[Event "Titled Tuesday Blitz December 13 Late 2022"]
[White "Firouzja, Alireza"]
[Black "Deac, Bogdan-Daniel"]
[WhiteFideId "12573981"]
[BlackFideId "1226380"]
[WhiteElo "2904"]
[BlackElo "2649"]
[Result "0-1"]
[Round "11"]
[TimeControl "180+1"]
[Date "2022.12.13"]
[WhiteClock "0:00:03"]
[BlackClock "0:00:07"]

1. e4 {[%clk 0:02:54]}  e5 {[%clk 0:02:59]} 2. Nf3 {[%clk 0:02:53]}  Nc6 {[%clk 0:03:00]} 3. Bb5 {[%clk 0:02:53]}  Nf6 {[%clk 0:03:00]} 4. d3 {[%clk 0:02:53]}  Bc5 {[%clk 0:03:00]} 5. c3 {[%clk 0:02:53]}  O-O {[%clk 0:03:00]} 6. Bg5 {[%clk 0:02:51]}  h6 {[%clk 0:02:56]} 7. Bh4 {[%clk 0:02:52]}  Be7 {[%clk 0:02:57]} 8. Bg3 {[%clk 0:02:51]}  d6 {[%clk 0:02:56]} 9. h3 {[%clk 0:02:51]}  a6 {[%clk 0:02:47]} 10. Ba4 {[%clk 0:02:51]}  Re8 {[%clk 0:02:44]} 11. O-O {[%clk 0:02:51]}  Bf8 {[%clk 0:02:44]} 12. Nbd2 {[%clk 0:02:49]}  Bd7 {[%clk 0:02:40]} 13. Re1 {[%clk 0:02:48]}  g6 {[%clk 0:02:39]} 14. d4 {[%clk 0:02:45]}  b5 {[%clk 0:02:38]} 15. Bb3 {[%clk 0:02:41]}  Bg7 {[%clk 0:02:36]} 16. Bh2 {[%clk 0:02:04]}  Rb8 {[%clk 0:02:27]} 17. a3 {[%clk 0:01:53]}  Nh7 {[%clk 0:02:16]} 18. dxe5 {[%clk 0:01:24]}  dxe5 {[%clk 0:02:14]} 19. Qe2 {[%clk 0:01:20]}  Be6 {[%clk 0:02:07]} 20. Bxe6 {[%clk 0:01:20]}  Rxe6 {[%clk 0:02:06]} 21. Nb3 {[%clk 0:01:20]}  Qe7 {[%clk 0:02:03]} 22. Nfd2 {[%clk 0:01:16]}  Rd6 {[%clk 0:01:48]} 23. a4 {[%clk 0:01:05]}  Ng5 {[%clk 0:01:40]} 24. axb5 {[%clk 0:01:05]}  axb5 {[%clk 0:01:41]} 25. Bg3 {[%clk 0:01:02]}  Ne6 {[%clk 0:01:35]} 26. Nf3 {[%clk 0:00:58]}  h5 {[%clk 0:01:34]} 27. Qe3 {[%clk 0:00:55]}  b4 {[%clk 0:01:23]} 28. Nbd2 {[%clk 0:00:52]}  Rbd8 {[%clk 0:01:12]} 29. Qe2 {[%clk 0:00:38]}  Rd3 {[%clk 0:01:12]} 30. c4 {[%clk 0:00:17]}  Qd7 {[%clk 0:01:03]} 31. Nf1 {[%clk 0:00:16]}  Rb3 {[%clk 0:00:42]} 32. Ra2 {[%clk 0:00:08]}  Ned4 {[%clk 0:00:36]} 33. Nxd4 {[%clk 0:00:09]}  Nxd4 {[%clk 0:00:37]} 34. Qd2 {[%clk 0:00:03]}  Qc6 {[%clk 0:00:35]} 35. Qg5 {[%clk 0:00:03]}  Bf6 {[%clk 0:00:30]} 36. Qh6 {[%clk 0:00:03]}  Qxc4 {[%clk 0:00:30]} 37. Ne3 {[%clk 0:00:03]}  Rxe3 {[%clk 0:00:20]} 38. fxe3 {[%clk 0:00:03]}  Ne2+ {[%clk 0:00:20]} 39. Rxe2 {[%clk 0:00:02]}  Qxe2 {[%clk 0:00:20]} 40. Kh2 {[%clk 0:00:02]}  Bg7 {[%clk 0:00:17]} 41. Qg5 {[%clk 0:00:02]}  Rd2 {[%clk 0:00:18]} 42. Bh4 {[%clk 0:00:02]}  Kh7 {[%clk 0:00:18]} 43. Qg3 {[%clk 0:00:02]}  Bh6 {[%clk 0:00:12]} 44. Bg5 {[%clk 0:00:01]}  Bg7 {[%clk 0:00:09]} 45. Ra7 {[%clk 0:00:02]}  f6 {[%clk 0:00:09]} 46. Bh4 {[%clk 0:00:02]}  Rc2 {[%clk 0:00:09]} 47. Rb7 {[%clk 0:00:02]}  b3 {[%clk 0:00:09]} 48. Rxb3 {[%clk 0:00:02]}  Rxb2 {[%clk 0:00:09]} 49. Rxb2 {[%clk 0:00:02]}  Qxb2 {[%clk 0:00:09]} 50. Qf3 {[%clk 0:00:02]}  Qb6 {[%clk 0:00:09]} 51. g4 {[%clk 0:00:03]}  hxg4 {[%clk 0:00:09]} 52. hxg4 {[%clk 0:00:04]}  c5 {[%clk 0:00:08]} 53. g5 {[%clk 0:00:04]}  fxg5 {[%clk 0:00:08]} 54. Bxg5 {[%clk 0:00:05]}  Qe6 {[%clk 0:00:08]} 55. Qd1 {[%clk 0:00:03]}  c4 {[%clk 0:00:08]} 56. Qd5 {[%clk 0:00:03]}  Qg4 {[%clk 0:00:08]} 57. Be7 {[%clk 0:00:02]}  Qe2+ {[%clk 0:00:08]} 58. Kh1 {[%clk 0:00:03]}  Qf1+ {[%clk 0:00:07]} 59. Kh2 {[%clk 0:00:03]}  c3 {[%clk 0:00:08]} 60. Qc6 {[%clk 0:00:01]}  Qe2+ {[%clk 0:00:08]} 61. Kh3 {[%clk 0:00:02]}  c2 {[%clk 0:00:08]} 62. Ba3 {[%clk 0:00:01]}  Qxe3+ {[%clk 0:00:07]} 63. Kg4 {[%clk 0:00:02]}  Qxa3 {[%clk 0:00:07]} 64. Qxc2 {[%clk 0:00:03]}  Qe3 {[%clk 0:00:07]} 65. Qh2+ {[%clk 0:00:03]}  Qh6 {[%clk 0:00:07]} 66. Qc2 {[%clk 0:00:01]}  Qf4+ {[%clk 0:00:08]} 67. Kh3 {[%clk 0:00:02]}  Qf3+ {[%clk 0:00:08]} 68. Kh2 {[%clk 0:00:02]}  Bf6 {[%clk 0:00:09]} 69. Kg1 {[%clk 0:00:02]}  Bg5 {[%clk 0:00:07]} 70. Qh2+ {[%clk 0:00:02]}  Kg8 {[%clk 0:00:07]} 71. Qa2+ {[%clk 0:00:03]}  Kg7 {[%clk 0:00:05]} 72. Kh2 {[%clk 0:00:01]}  Bf4+ {[%clk 0:00:05]} 73. Kg1 {[%clk 0:00:02]}  Be3+ {[%clk 0:00:06]} 74. Kh2 {[%clk 0:00:02]}  Qf2+ {[%clk 0:00:06]} 75. Kh1 {[%clk 0:00:02]}  Qf1+ {[%clk 0:00:06]} 76. Kh2 {[%clk 0:00:03]}  Qf2+ {[%clk 0:00:07]} 77. Kh1 {[%clk 0:00:03]}  Qg1# {[%clk 0:00:07]} 0-1


[Site "https://www.chess.com"]

[Event "Titled Tuesday Blitz December 13 Late 2022"]
[White "Gerbelli Neto, Eduardo"]
[Black "Mitrovic, Darko R"]
[WhiteFideId "2103281"]
[BlackFideId "927023"]
[WhiteElo "2178"]
[BlackElo "2150"]
[Result "1-0"]
[Round "11"]
[TimeControl "180+1"]
[Date "2022.12.14"]
[WhiteClock "0:00:50"]
[BlackClock "0:00:02"]

1. e4 {[%clk 0:02:56]}  e6 {[%clk 0:02:40]} 2. d4 {[%clk 0:02:56]}  d5 {[%clk 0:02:40]} 3. Nc3 {[%clk 0:02:56]}  Bb4 {[%clk 0:02:40]} 4. Ne2 {[%clk 0:02:51]}  Nf6 {[%clk 0:02:38]} 5. e5 {[%clk 0:02:50]}  Ne4 {[%clk 0:02:39]} 6. a3 {[%clk 0:02:51]}  Nxc3 {[%clk 0:02:37]} 7. bxc3 {[%clk 0:02:49]}  Be7 {[%clk 0:02:36]} 8. Ng3 {[%clk 0:02:43]}  b6 {[%clk 0:02:30]} 9. Bd3 {[%clk 0:02:39]}  Ba6 {[%clk 0:02:08]} 10. h4 {[%clk 0:02:39]}  Bxd3 {[%clk 0:02:06]} 11. cxd3 {[%clk 0:02:40]}  Nc6 {[%clk 0:01:35]} 12. h5 {[%clk 0:02:38]}  Qd7 {[%clk 0:00:39]} 13. Qg4 {[%clk 0:02:33]}  Rg8 {[%clk 0:00:20]} 14. h6 {[%clk 0:02:19]}  g6 {[%clk 0:00:18]} 15. Nh5 {[%clk 0:02:19]}  O-O-O {[%clk 0:00:14]} 16. Nf6 {[%clk 0:02:19]}  Bxf6 {[%clk 0:00:14]} 17. exf6 {[%clk 0:02:20]}  e5 {[%clk 0:00:13]} 18. Qxd7+ {[%clk 0:02:17]}  Kxd7 {[%clk 0:00:09]} 19. dxe5 {[%clk 0:02:07]}  Nxe5 {[%clk 0:00:09]} 20. d4 {[%clk 0:02:04]}  Nc4 {[%clk 0:00:08]} 21. Bf4 {[%clk 0:01:52]}  Rge8+ {[%clk 0:00:08]} 22. Kf1 {[%clk 0:01:41]}  Re4 {[%clk 0:00:07]} 23. g3 {[%clk 0:01:40]}  Rde8 {[%clk 0:00:07]} 24. Kg2 {[%clk 0:01:37]}  R8e6 {[%clk 0:00:06]} 25. Bg5 {[%clk 0:01:34]}  Re2 {[%clk 0:00:06]} 26. Rhc1 {[%clk 0:01:20]}  a5 {[%clk 0:00:06]} 27. Kf3 {[%clk 0:01:17]}  a4 {[%clk 0:00:05]} 28. Be3 {[%clk 0:01:12]}  Rb2 {[%clk 0:00:04]} 29. Bg5 {[%clk 0:01:05]}  Rb3 {[%clk 0:00:04]} 30. Kg4 {[%clk 0:01:02]}  b5 {[%clk 0:00:04]} 31. Re1 {[%clk 0:00:57]}  Rxa3 {[%clk 0:00:02]} 32. Rac1 {[%clk 0:00:50]} 1-0


[Site "https://www.chess.com"]

[Event "Titled Tuesday Blitz December 13 Late 2022"]
[White "Goryachkina, Aleksandra"]
[Black "Winterberg, Lukas"]
[WhiteFideId "4147103"]
[BlackFideId "24622702"]
[WhiteElo "2484"]
[BlackElo "2350"]
[Result "1/2-1/2"]
[Round "11"]
[TimeControl "180+1"]
[Date "2022.12.13"]
[WhiteClock "0:01:19"]
[BlackClock "0:01:32"]

1. e4 {[%clk 0:02:59]}  e6 {[%clk 0:02:59]} 2. d4 {[%clk 0:02:59]}  d5 {[%clk 0:03:00]} 3. Nc3 {[%clk 0:02:58]}  Nf6 {[%clk 0:03:00]} 4. Bg5 {[%clk 0:02:58]}  h6 {[%clk 0:03:01]} 5. Bxf6 {[%clk 0:02:57]}  Qxf6 {[%clk 0:03:02]} 6. exd5 {[%clk 0:02:57]}  Bb4 {[%clk 0:03:02]} 7. dxe6 {[%clk 0:02:57]}  Bxe6 {[%clk 0:03:03]} 8. Nf3 {[%clk 0:02:57]}  Nc6 {[%clk 0:03:02]} 9. Bb5 {[%clk 0:02:57]}  O-O {[%clk 0:03:00]} 10. Bxc6 {[%clk 0:02:49]}  bxc6 {[%clk 0:03:01]} 11. O-O {[%clk 0:02:49]}  Rfd8 {[%clk 0:03:01]} 12. a3 {[%clk 0:02:25]}  Bf8 {[%clk 0:03:00]} 13. Ne4 {[%clk 0:02:22]}  Qf4 {[%clk 0:02:59]} 14. Ng3 {[%clk 0:02:22]}  c5 {[%clk 0:02:56]} 15. c3 {[%clk 0:02:18]}  Bd5 {[%clk 0:02:54]} 16. Qd2 {[%clk 0:02:01]}  Qxd2 {[%clk 0:02:48]} 17. Nxd2 {[%clk 0:02:01]}  cxd4 {[%clk 0:02:49]} 18. cxd4 {[%clk 0:02:00]}  c5 {[%clk 0:02:49]} 19. dxc5 {[%clk 0:01:54]}  Bxc5 {[%clk 0:02:50]} 20. Rfd1 {[%clk 0:01:47]}  a5 {[%clk 0:02:48]} 21. Nf5 {[%clk 0:01:43]}  Be6 {[%clk 0:02:40]} 22. Ne3 {[%clk 0:01:40]}  Rab8 {[%clk 0:02:03]} 23. b4 {[%clk 0:01:29]}  axb4 {[%clk 0:01:59]} 24. axb4 {[%clk 0:01:29]}  Bxb4 {[%clk 0:01:50]} 25. Nf3 {[%clk 0:01:28]}  g6 {[%clk 0:01:44]} 26. h3 {[%clk 0:01:23]}  Kg7 {[%clk 0:01:43]} 27. Rab1 {[%clk 0:01:21]}  Be7 {[%clk 0:01:42]} 28. Rxb8 {[%clk 0:01:19]}  Rxb8 {[%clk 0:01:43]} 29. Nd4 {[%clk 0:01:19]}  Rb6 {[%clk 0:01:32]} 1/2-1/2


[Site "https://www.chess.com"]

[Event "Titled Tuesday Blitz December 13 Late 2022"]
[White "Gritsenko, Nikolai"]
[Black "Kupervaser, Erez"]
[WhiteFideId "14112493"]
[BlackFideId "2814587"]
[WhiteElo "2389"]
[BlackElo "2251"]
[Result "0-1"]
[Round "11"]
[TimeControl "180+1"]
[Date "2022.12.13"]
[WhiteClock "0:00:06"]
[BlackClock "0:00:13"]

1. b3 {[%clk 0:02:57]}  a5 {[%clk 0:02:53]} 2. Nc3 {[%clk 0:02:56]}  d5 {[%clk 0:02:52]} 3. e3 {[%clk 0:02:56]}  e5 {[%clk 0:02:51]} 4. Nf3 {[%clk 0:02:53]}  Bd6 {[%clk 0:02:48]} 5. Nb5 {[%clk 0:02:47]}  Nf6 {[%clk 0:02:44]} 6. Bb2 {[%clk 0:02:42]}  Nc6 {[%clk 0:02:35]} 7. Nxd6+ {[%clk 0:02:41]}  cxd6 {[%clk 0:02:35]} 8. a3 {[%clk 0:02:36]}  O-O {[%clk 0:02:33]} 9. Be2 {[%clk 0:02:36]}  d4 {[%clk 0:02:22]} 10. exd4 {[%clk 0:02:04]}  e4 {[%clk 0:02:22]} 11. Ng1 {[%clk 0:02:03]}  d5 {[%clk 0:02:22]} 12. a4 {[%clk 0:01:52]}  Bf5 {[%clk 0:02:19]} 13. c3 {[%clk 0:01:50]}  Ne7 {[%clk 0:02:09]} 14. g4 {[%clk 0:01:39]}  Be6 {[%clk 0:02:05]} 15. h3 {[%clk 0:01:27]}  Ng6 {[%clk 0:02:04]} 16. Qc2 {[%clk 0:01:26]}  Bd7 {[%clk 0:01:49]} 17. g5 {[%clk 0:01:16]}  Ne8 {[%clk 0:01:41]} 18. h4 {[%clk 0:01:16]}  Nd6 {[%clk 0:01:31]} 19. c4 {[%clk 0:01:10]}  Be6 {[%clk 0:01:27]} 20. c5 {[%clk 0:01:04]}  Nf5 {[%clk 0:01:27]} 21. h5 {[%clk 0:00:54]}  Nf4 {[%clk 0:01:27]} 22. g6 {[%clk 0:00:54]}  fxg6 {[%clk 0:01:26]} 23. hxg6 {[%clk 0:00:54]}  Nxg6 {[%clk 0:01:22]} 24. O-O-O {[%clk 0:00:52]}  b6 {[%clk 0:01:20]} 25. Bb5 {[%clk 0:00:48]}  Rc8 {[%clk 0:01:19]} 26. Ne2 {[%clk 0:00:44]}  Nd6 {[%clk 0:00:40]} 27. Rdf1 {[%clk 0:00:34]}  Bd7 {[%clk 0:00:28]} 28. Bxd7 {[%clk 0:00:29]}  Qxd7 {[%clk 0:00:29]} 29. Kb1 {[%clk 0:00:28]}  bxc5 {[%clk 0:00:26]} 30. dxc5 {[%clk 0:00:28]}  Nb7 {[%clk 0:00:26]} 31. Bd4 {[%clk 0:00:27]}  Rf3 {[%clk 0:00:26]} 32. Ng1 {[%clk 0:00:22]}  Rd3 {[%clk 0:00:25]} 33. Ne2 {[%clk 0:00:20]}  Nd8 {[%clk 0:00:23]} 34. Rc1 {[%clk 0:00:17]}  Ne6 {[%clk 0:00:23]} 35. Qb2 {[%clk 0:00:17]}  Qf7 {[%clk 0:00:22]} 36. c6 {[%clk 0:00:15]}  Rb8 {[%clk 0:00:22]} 37. Rc3 {[%clk 0:00:13]}  Qf3 {[%clk 0:00:22]} 38. Ka2 {[%clk 0:00:11]}  Qxe2 {[%clk 0:00:21]} 39. Rxd3 {[%clk 0:00:10]}  Qxd3 {[%clk 0:00:21]} 40. Bc3 {[%clk 0:00:10]}  d4 {[%clk 0:00:20]} 41. Bxa5 {[%clk 0:00:10]}  Rc8 {[%clk 0:00:20]} 42. Rc1 {[%clk 0:00:09]}  Qa6 {[%clk 0:00:20]} 43. b4 {[%clk 0:00:08]}  Ne5 {[%clk 0:00:17]} 44. Qb3 {[%clk 0:00:08]}  Kf7 {[%clk 0:00:14]} 45. Re1 {[%clk 0:00:04]}  Qxc6 {[%clk 0:00:13]} 46. b5 {[%clk 0:00:04]}  Qc2+ {[%clk 0:00:13]} 47. Qxc2 {[%clk 0:00:04]}  Rxc2+ {[%clk 0:00:14]} 48. Kb3 {[%clk 0:00:05]}  d3 {[%clk 0:00:13]} 49. Rxe4 {[%clk 0:00:05]}  Nc5+ {[%clk 0:00:13]} 50. Kb4 {[%clk 0:00:04]}  Nxe4 {[%clk 0:00:14]} 51. Bb6 {[%clk 0:00:04]}  Nd7 {[%clk 0:00:12]} 52. a5 {[%clk 0:00:05]}  Nxb6 {[%clk 0:00:11]} 53. axb6 {[%clk 0:00:05]}  Rc8 {[%clk 0:00:12]} 54. f3 {[%clk 0:00:04]}  Nd6 {[%clk 0:00:12]} 55. b7 {[%clk 0:00:04]}  Rb8 {[%clk 0:00:12]} 56. Kc5 {[%clk 0:00:04]}  Ke7 {[%clk 0:00:12]} 57. Kd4 {[%clk 0:00:05]}  Rxb7 {[%clk 0:00:13]} 58. Kxd3 {[%clk 0:00:06]}  Rxb5 {[%clk 0:00:13]} 0-1


[Site "https://www.chess.com"]

[Event "Titled Tuesday Blitz December 13 Late 2022"]
[White "Harshavardhan G B"]
[Black "Reprintsev, Alexander"]
[WhiteFideId "25059009"]
[BlackFideId "14100541"]
[WhiteElo "2323"]
[BlackElo "2230"]
[Result "1-0"]
[Round "11"]
[TimeControl "180+1"]
[Date "2022.12.14"]
[WhiteClock "0:01:03"]
[BlackClock "0:00:25"]

1. d4 {[%clk 0:03:00]}  d5 {[%clk 0:02:58]} 2. c4 {[%clk 0:03:00]}  e5 {[%clk 0:02:56]} 3. dxe5 {[%clk 0:03:00]}  d4 {[%clk 0:02:56]} 4. Nf3 {[%clk 0:03:00]}  Nc6 {[%clk 0:02:56]} 5. Nbd2 {[%clk 0:02:59]}  a5 {[%clk 0:02:47]} 6. Nb3 {[%clk 0:02:49]}  Bg4 {[%clk 0:02:45]} 7. Nbxd4 {[%clk 0:02:16]}  Bc5 {[%clk 0:02:30]} 8. e3 {[%clk 0:02:03]}  Nxd4 {[%clk 0:02:24]} 9. exd4 {[%clk 0:02:00]}  Bxf3 {[%clk 0:02:24]} 10. Qxf3 {[%clk 0:01:59]}  Bb4+ {[%clk 0:01:56]} 11. Bd2 {[%clk 0:01:53]}  Qxd4 {[%clk 0:01:53]} 12. Bxb4 {[%clk 0:01:46]}  Qxe5+ {[%clk 0:01:50]} 13. Be2 {[%clk 0:01:46]}  axb4 {[%clk 0:01:43]} 14. Qxb7 {[%clk 0:01:44]}  Rd8 {[%clk 0:01:24]} 15. O-O {[%clk 0:01:43]}  Ne7 {[%clk 0:01:11]} 16. Qxb4 {[%clk 0:01:35]}  O-O {[%clk 0:01:10]} 17. Bf3 {[%clk 0:01:33]}  Rb8 {[%clk 0:01:07]} 18. Qc3 {[%clk 0:01:30]}  Qxc3 {[%clk 0:01:05]} 19. bxc3 {[%clk 0:01:30]}  Nf5 {[%clk 0:00:59]} 20. a4 {[%clk 0:01:28]}  Nd6 {[%clk 0:00:59]} 21. c5 {[%clk 0:01:26]}  Nc4 {[%clk 0:00:54]} 22. a5 {[%clk 0:01:26]}  Nd2 {[%clk 0:00:54]} 23. a6 {[%clk 0:01:21]}  Nxf3+ {[%clk 0:00:52]} 24. gxf3 {[%clk 0:01:22]}  Ra8 {[%clk 0:00:44]} 25. a7 {[%clk 0:01:15]}  Rfd8 {[%clk 0:00:40]} 26. Rfb1 {[%clk 0:01:15]}  Kf8 {[%clk 0:00:38]} 27. Rb7 {[%clk 0:01:14]}  Rdc8 {[%clk 0:00:34]} 28. Rab1 {[%clk 0:01:14]}  Ke7 {[%clk 0:00:28]} 29. Rb8 {[%clk 0:01:11]}  Kd7 {[%clk 0:00:28]} 30. c6+ {[%clk 0:01:09]}  Kd8 {[%clk 0:00:27]} 31. f4 {[%clk 0:01:04]}  f5 {[%clk 0:00:26]} 32. h4 {[%clk 0:01:03]}  g6 {[%clk 0:00:25]} 33. Kg2 {[%clk 0:01:03]} 1-0


[Site "https://www.chess.com"]

[Event "Titled Tuesday Blitz December 13 Late 2022"]
[White "Itkis, Boris"]
[Black "Kanyamarala, Trisha"]
[WhiteFideId "1209167"]
[BlackFideId "45004722"]
[WhiteElo "2216"]
[BlackElo "2135"]
[Result "0-1"]
[Round "11"]
[TimeControl "180+1"]
[Date "2022.12.14"]
[WhiteClock "0:01:21"]
[BlackClock "0:00:16"]

1. c4 {[%clk 0:02:58]}  e5 {[%clk 0:02:55]} 2. Nf3 {[%clk 0:02:58]}  d6 {[%clk 0:02:53]} 3. Nc3 {[%clk 0:02:58]}  Nf6 {[%clk 0:02:53]} 4. d4 {[%clk 0:02:58]}  exd4 {[%clk 0:02:52]} 5. Nxd4 {[%clk 0:02:59]}  Be7 {[%clk 0:02:52]} 6. Bg5 {[%clk 0:02:59]}  O-O {[%clk 0:02:52]} 7. g3 {[%clk 0:02:59]}  Nbd7 {[%clk 0:02:52]} 8. Bg2 {[%clk 0:02:59]}  Ne5 {[%clk 0:02:51]} 9. b3 {[%clk 0:02:57]}  h6 {[%clk 0:02:47]} 10. Bf4 {[%clk 0:02:57]}  Ng6 {[%clk 0:02:46]} 11. Bc1 {[%clk 0:02:54]}  Rb8 {[%clk 0:02:33]} 12. O-O {[%clk 0:02:52]}  Bd7 {[%clk 0:02:33]} 13. Bb2 {[%clk 0:02:51]}  Qc8 {[%clk 0:02:33]} 14. Re1 {[%clk 0:02:50]}  Bh3 {[%clk 0:02:33]} 15. Bh1 {[%clk 0:02:51]}  a6 {[%clk 0:02:31]} 16. a4 {[%clk 0:02:45]}  Rd8 {[%clk 0:02:24]} 17. e4 {[%clk 0:02:43]}  c6 {[%clk 0:02:18]} 18. a5 {[%clk 0:02:41]}  Bg4 {[%clk 0:02:09]} 19. Qc2 {[%clk 0:02:34]}  Ne5 {[%clk 0:02:01]} 20. f3 {[%clk 0:02:30]}  c5 {[%clk 0:02:00]} 21. fxg4 {[%clk 0:02:22]}  cxd4 {[%clk 0:02:00]} 22. Nd5 {[%clk 0:02:15]}  Nxd5 {[%clk 0:01:54]} 23. exd5 {[%clk 0:02:16]}  Qxg4 {[%clk 0:01:44]} 24. Re4 {[%clk 0:02:17]}  Qg6 {[%clk 0:00:59]} 25. Bxd4 {[%clk 0:02:15]}  Bf6 {[%clk 0:00:56]} 26. Qe2 {[%clk 0:02:08]}  h5 {[%clk 0:00:44]} 27. c5 {[%clk 0:01:45]}  h4 {[%clk 0:00:35]} 28. cxd6 {[%clk 0:01:34]}  Nd7 {[%clk 0:00:19]} 29. Bxf6 {[%clk 0:01:34]}  Qxf6 {[%clk 0:00:19]} 30. Rf1 {[%clk 0:01:32]}  Qxd6 {[%clk 0:00:18]} 31. Rxh4 {[%clk 0:01:29]}  Nf6 {[%clk 0:00:18]} 32. Qf2 {[%clk 0:01:23]}  Re8 {[%clk 0:00:17]} 33. Rb4 {[%clk 0:01:21]}  Qxb4 {[%clk 0:00:16]} 0-1


[Site "https://www.chess.com"]